[Event "Titled Tuesday Blitz August 08 Late 2023"]
[White "Fier, Alexandr"]
[Black "Vaibhav Jayant Raut"]
[WhiteFideId "2107139"]
[BlackFideId "5089034"]
[WhiteElo "2779"]
[BlackElo "2607"]
[Result "1-0"]
[Round "7"]
[TimeControl "180+1"]
[Date "2023.08.08"]
[WhiteClock "0:01:36"]
[BlackClock "0:00:02"]
[Board "33"]

1. e4 {[%clk 0:02:51]}  e5 {[%clk 0:02:59]} 2. f4 {[%clk 0:02:51]}  exf4 {[%clk 0:02:59]} 3. Nf3 {[%clk 0:02:52]}  d5 {[%clk 0:02:59]} 4. exd5 {[%clk 0:02:52]}  Nf6 {[%clk 0:02:59]} 5. Be2 {[%clk 0:02:52]}  Nxd5 {[%clk 0:02:55]} 6. c4 {[%clk 0:02:52]}  Nf6 {[%clk 0:02:55]} 7. d4 {[%clk 0:02:52]}  Bb4+ {[%clk 0:02:55]} 8. Nc3 {[%clk 0:02:52]}  O-O {[%clk 0:02:54]} 9. Bxf4 {[%clk 0:02:51]}  Re8 {[%clk 0:02:54]} 10. O-O {[%clk 0:02:52]}  Nc6 {[%clk 0:02:41]} 11. d5 {[%clk 0:02:52]}  Ne7 {[%clk 0:02:40]} 12. Bg5 {[%clk 0:02:51]}  Ng6 {[%clk 0:02:38]} 13. Kh1 {[%clk 0:02:49]}  h6 {[%clk 0:02:37]} 14. Bd2 {[%clk 0:02:41]}  c6 {[%clk 0:02:34]} 15. Bd3 {[%clk 0:02:33]}  cxd5 {[%clk 0:02:27]} 16. cxd5 {[%clk 0:02:33]}  Bxc3 {[%clk 0:02:19]} 17. bxc3 {[%clk 0:02:31]}  Qxd5 {[%clk 0:02:13]} 18. Qc2 {[%clk 0:02:32]}  Bg4 {[%clk 0:01:44]} 19. Nd4 {[%clk 0:02:29]}  Ne5 {[%clk 0:01:40]} 20. Bb5 {[%clk 0:02:27]}  Rec8 {[%clk 0:01:36]} 21. Ba4 {[%clk 0:02:14]}  Ne4 {[%clk 0:01:21]} 22. Be1 {[%clk 0:02:09]}  Nc4 {[%clk 0:01:12]} 23. Rf4 {[%clk 0:02:05]}  f5 {[%clk 0:01:12]} 24. Bb3 {[%clk 0:02:02]}  b5 {[%clk 0:01:07]} 25. Qd3 {[%clk 0:02:02]}  Qe5 {[%clk 0:01:03]} 26. Rf1 {[%clk 0:01:56]}  Kh8 {[%clk 0:01:04]} 27. h3 {[%clk 0:01:57]}  Nc5 {[%clk 0:00:43]} 28. Qb1 {[%clk 0:01:57]}  Ne3 {[%clk 0:00:39]} 29. Rf2 {[%clk 0:01:57]}  Ne4 {[%clk 0:00:33]} 30. hxg4 {[%clk 0:01:55]}  Nxf2+ {[%clk 0:00:33]} 31. Bxf2 {[%clk 0:01:55]}  Nxg4 {[%clk 0:00:33]} 32. Bg1 {[%clk 0:01:53]}  Rxc3 {[%clk 0:00:14]} 33. Qxf5 {[%clk 0:01:49]}  Qg3 {[%clk 0:00:12]} 34. Nf3 {[%clk 0:01:45]}  Nf2+ {[%clk 0:00:09]} 35. Bxf2 {[%clk 0:01:45]}  Qxf2 {[%clk 0:00:10]} 36. Bd5 {[%clk 0:01:43]}  Re8 {[%clk 0:00:08]} 37. Be4 {[%clk 0:01:43]}  Kg8 {[%clk 0:00:07]} 38. Qh7+ {[%clk 0:01:40]}  Kf8 {[%clk 0:00:07]} 39. Qh8+ {[%clk 0:01:34]}  Kf7 {[%clk 0:00:06]} 40. Bd5+ {[%clk 0:01:35]}  Ke7 {[%clk 0:00:02]} 41. Qxg7+ {[%clk 0:01:35]}  Kd6 {[%clk 0:00:03]} 42. Qxc3 {[%clk 0:01:36]}  Kxd5 {[%clk 0:00:02]} 43. Rd1+ {[%clk 0:01:36]} 1-0


[Site "https://www.chess.com"]

[Event "Titled Tuesday Blitz August 08 Late 2023"]
[White "Sun, Rick"]
[Black "Mahdavi, Reza"]
[WhiteFideId "30909481"]
[BlackFideId "12595926"]
[WhiteElo "2592"]
[BlackElo "2764"]
[Result "1/2-1/2"]
[Round "7"]
[TimeControl "180+1"]
[Date "2023.08.08"]
[WhiteClock "0:00:06"]
[BlackClock "0:00:09"]
[Board "34"]

1. d4 {[%clk 0:03:00]}  Nf6 {[%clk 0:02:23]} 2. Nc3 {[%clk 0:03:00]}  d5 {[%clk 0:02:23]} 3. Bf4 {[%clk 0:02:59]}  e6 {[%clk 0:02:24]} 4. e3 {[%clk 0:02:59]}  Bb4 {[%clk 0:02:23]} 5. Bd3 {[%clk 0:02:59]}  O-O {[%clk 0:02:21]} 6. Nf3 {[%clk 0:02:58]}  c5 {[%clk 0:02:13]} 7. dxc5 {[%clk 0:02:57]}  Qa5 {[%clk 0:02:08]} 8. O-O {[%clk 0:02:53]}  Nbd7 {[%clk 0:02:02]} 9. Ne2 {[%clk 0:02:25]}  Bxc5 {[%clk 0:01:56]} 10. a3 {[%clk 0:02:12]}  Be7 {[%clk 0:01:44]} 11. b4 {[%clk 0:02:00]}  Qb6 {[%clk 0:01:43]} 12. c4 {[%clk 0:01:57]}  dxc4 {[%clk 0:01:43]} 13. Bxc4 {[%clk 0:01:54]}  Rd8 {[%clk 0:01:44]} 14. Qb3 {[%clk 0:01:31]}  Nf8 {[%clk 0:01:38]} 15. Rac1 {[%clk 0:01:27]}  Bd7 {[%clk 0:01:34]} 16. Ne5 {[%clk 0:01:21]}  Be8 {[%clk 0:01:32]} 17. Rc2 {[%clk 0:00:57]}  a5 {[%clk 0:01:29]} 18. b5 {[%clk 0:00:52]}  a4 {[%clk 0:01:29]} 19. Qb2 {[%clk 0:00:49]}  Rac8 {[%clk 0:01:20]} 20. Rfc1 {[%clk 0:00:47]}  Ne4 {[%clk 0:00:59]} 21. Nc3 {[%clk 0:00:29]}  Nxc3 {[%clk 0:00:55]} 22. Rxc3 {[%clk 0:00:29]}  Bf6 {[%clk 0:00:55]} 23. Qb4 {[%clk 0:00:18]}  Rc5 {[%clk 0:00:43]} 24. Nd3 {[%clk 0:00:12]}  Rxb5 {[%clk 0:00:13]} 25. Bxb5 {[%clk 0:00:09]}  Bxc3 {[%clk 0:00:14]} 26. Qxc3 {[%clk 0:00:06]}  Qxb5 {[%clk 0:00:13]} 27. Ne5 {[%clk 0:00:06]}  Bc6 {[%clk 0:00:08]} 28. Nxc6 {[%clk 0:00:06]}  bxc6 {[%clk 0:00:09]} 29. h4 {[%clk 0:00:06]}  Rc8 {[%clk 0:00:05]} 30. Be5 {[%clk 0:00:06]}  f6 {[%clk 0:00:05]} 31. Bd6 {[%clk 0:00:06]}  Ng6 {[%clk 0:00:04]} 32. h5 {[%clk 0:00:06]}  Qxh5 {[%clk 0:00:05]} 33. Qc4 {[%clk 0:00:04]}  Qd5 {[%clk 0:00:05]} 34. Bb4 {[%clk 0:00:03]}  Qxc4 {[%clk 0:00:05]} 35. Rxc4 {[%clk 0:00:04]}  Ne5 {[%clk 0:00:06]} 36. Re4 {[%clk 0:00:04]}  c5 {[%clk 0:00:06]} 37. Bc3 {[%clk 0:00:05]}  Nc6 {[%clk 0:00:04]} 38. Rxe6 {[%clk 0:00:05]}  Kf7 {[%clk 0:00:04]} 39. Re4 {[%clk 0:00:05]}  Ra8 {[%clk 0:00:04]} 40. Kf1 {[%clk 0:00:05]}  Nd8 {[%clk 0:00:03]} 41. Ke2 {[%clk 0:00:06]}  Ne6 {[%clk 0:00:04]} 42. f4 {[%clk 0:00:06]}  g6 {[%clk 0:00:04]} 43. g4 {[%clk 0:00:07]}  h5 {[%clk 0:00:04]} 44. f5 {[%clk 0:00:07]}  Ng5 {[%clk 0:00:04]} 45. Rc4 {[%clk 0:00:07]}  h4 {[%clk 0:00:04]} 46. Rxc5 {[%clk 0:00:07]}  h3 {[%clk 0:00:04]} 47. Rc7+ {[%clk 0:00:07]}  Kg8 {[%clk 0:00:05]} 48. Bxf6 {[%clk 0:00:06]}  Ne4 {[%clk 0:00:05]} 49. Be5 {[%clk 0:00:04]}  gxf5 {[%clk 0:00:03]} 50. gxf5 {[%clk 0:00:04]}  Ra5 {[%clk 0:00:04]} 51. Rc8+ {[%clk 0:00:03]}  Kf7 {[%clk 0:00:03]} 52. Rc7+ {[%clk 0:00:04]}  Ke8 {[%clk 0:00:04]} 53. Bf4 {[%clk 0:00:05]}  Rxf5 {[%clk 0:00:04]} 54. Rc8+ {[%clk 0:00:05]}  Kd7 {[%clk 0:00:03]} 55. Rh8 {[%clk 0:00:06]}  Rb5 {[%clk 0:00:04]} 56. Rxh3 {[%clk 0:00:05]}  Rb3 {[%clk 0:00:04]} 57. Rh7+ {[%clk 0:00:05]}  Ke6 {[%clk 0:00:04]} 58. Rh6+ {[%clk 0:00:06]}  Kf7 {[%clk 0:00:03]} 59. Rh5 {[%clk 0:00:06]}  Rxa3 {[%clk 0:00:03]} 60. Rf5+ {[%clk 0:00:06]}  Ke6 {[%clk 0:00:04]} 61. Re5+ {[%clk 0:00:07]}  Kf6 {[%clk 0:00:04]} 62. Rxe4 {[%clk 0:00:08]}  Ra1 {[%clk 0:00:05]} 63. Rb4 {[%clk 0:00:08]}  a3 {[%clk 0:00:06]} 64. Ra4 {[%clk 0:00:08]}  a2 {[%clk 0:00:06]} 65. Ra6+ {[%clk 0:00:07]}  Kf5 {[%clk 0:00:06]} 66. Ra5+ {[%clk 0:00:07]}  Kg4 {[%clk 0:00:07]} 67. Rg5+ {[%clk 0:00:05]}  Kh4 {[%clk 0:00:07]} 68. Ra5 {[%clk 0:00:05]}  Rg1 {[%clk 0:00:07]} 69. Rxa2 {[%clk 0:00:02]}  Rg2+ {[%clk 0:00:07]} 70. Kf3 {[%clk 0:00:03]}  Rxa2 {[%clk 0:00:08]} 71. Ke4 {[%clk 0:00:03]}  Kh5 {[%clk 0:00:08]} 72. Kf3 {[%clk 0:00:04]}  Kg6 {[%clk 0:00:09]} 73. Ke4 {[%clk 0:00:04]}  Kf7 {[%clk 0:00:10]} 74. Kf5 {[%clk 0:00:05]}  Ra5+ {[%clk 0:00:10]} 75. Ke4 {[%clk 0:00:06]}  Ke6 {[%clk 0:00:10]} 76. Kf3 {[%clk 0:00:07]}  Ra4 {[%clk 0:00:10]} 77. Kg4 {[%clk 0:00:07]}  Rb4 {[%clk 0:00:11]} 78. Kf3 {[%clk 0:00:08]}  Kf5 {[%clk 0:00:11]} 79. Kg3 {[%clk 0:00:08]}  Ke4 {[%clk 0:00:10]} 80. Kg4 {[%clk 0:00:09]}  Rb5 {[%clk 0:00:11]} 81. Kg3 {[%clk 0:00:09]}  Rb7 {[%clk 0:00:11]} 82. Kg4 {[%clk 0:00:09]}  Rg7+ {[%clk 0:00:12]} 83. Kh3 {[%clk 0:00:09]}  Kf5 {[%clk 0:00:12]} 84. Kh2 {[%clk 0:00:09]}  Rg6 {[%clk 0:00:09]} 85. Kh3 {[%clk 0:00:10]}  Ke4 {[%clk 0:00:09]} 86. Kh2 {[%clk 0:00:10]}  Kf3 {[%clk 0:00:10]} 87. Kh1 {[%clk 0:00:09]}  Rg4 {[%clk 0:00:09]} 88. Kh2 {[%clk 0:00:09]}  Rh4+ {[%clk 0:00:09]} 89. Kg1 {[%clk 0:00:09]}  Rh5 {[%clk 0:00:09]} 90. Bh2 {[%clk 0:00:08]}  Rg5+ {[%clk 0:00:06]} 91. Kh1 {[%clk 0:00:08]}  Rd5 {[%clk 0:00:06]} 92. Bg1 {[%clk 0:00:08]}  Kg3 {[%clk 0:00:05]} 93. Bh2+ {[%clk 0:00:07]}  Kh3 {[%clk 0:00:04]} 94. Bg1 {[%clk 0:00:07]}  Rd1 {[%clk 0:00:02]} 95. e4 {[%clk 0:00:08]}  Rd7 {[%clk 0:00:03]} 96. e5 {[%clk 0:00:08]}  Re7 {[%clk 0:00:03]} 97. Bh2 {[%clk 0:00:08]}  Re6 {[%clk 0:00:03]} 98. Bf4 {[%clk 0:00:07]}  Kg4 {[%clk 0:00:03]} 99. Bh2 {[%clk 0:00:07]}  Kf3 {[%clk 0:00:04]} 100. Kg1 {[%clk 0:00:06]}  Rg6+ {[%clk 0:00:04]} 101. Kh1 {[%clk 0:00:06]}  Re6 {[%clk 0:00:04]} 102. Kg1 {[%clk 0:00:06]}  Kg4 {[%clk 0:00:03]} 103. Kg2 {[%clk 0:00:06]}  Rb6 {[%clk 0:00:03]} 104. Kh1 {[%clk 0:00:07]}  Rb2 {[%clk 0:00:03]} 105. Bg1 {[%clk 0:00:06]}  Re2 {[%clk 0:00:04]} 106. Bh2 {[%clk 0:00:06]}  Re1+ {[%clk 0:00:03]} 107. Bg1 {[%clk 0:00:07]}  Kf5 {[%clk 0:00:02]} 108. Kg2 {[%clk 0:00:06]}  Re2+ {[%clk 0:00:02]} 109. Kh1 {[%clk 0:00:06]}  Rxe5 {[%clk 0:00:03]} 110. Bh2 {[%clk 0:00:06]}  Re2 {[%clk 0:00:03]} 111. Bg1 {[%clk 0:00:07]}  Kg4 {[%clk 0:00:03]} 112. Bh2 {[%clk 0:00:07]}  Kf3 {[%clk 0:00:04]} 113. Bg1 {[%clk 0:00:07]}  Re6 {[%clk 0:00:04]} 114. Bh2 {[%clk 0:00:07]}  Rh6 {[%clk 0:00:05]} 115. Kg1 {[%clk 0:00:07]}  Ke4 {[%clk 0:00:04]} 116. Kg2 {[%clk 0:00:07]}  Kf5 {[%clk 0:00:05]} 117. Kh1 {[%clk 0:00:08]}  Rg6 {[%clk 0:00:05]} 118. Bg1 {[%clk 0:00:08]}  Rg8 {[%clk 0:00:06]} 119. Bh2 {[%clk 0:00:08]}  Ke6 {[%clk 0:00:07]} 120. Bg1 {[%clk 0:00:09]}  Kd5 {[%clk 0:00:08]} 121. Bh2 {[%clk 0:00:09]}  Rh8 {[%clk 0:00:08]} 122. Kg1 {[%clk 0:00:09]}  Ke4 {[%clk 0:00:08]} 123. Kh1 {[%clk 0:00:10]}  Kf3 {[%clk 0:00:09]} 124. Kg1 {[%clk 0:00:10]}  Rd8 {[%clk 0:00:09]} 125. Bc7 {[%clk 0:00:08]}  Rd1+ {[%clk 0:00:10]} 126. Kh2 {[%clk 0:00:08]}  Rd2+ {[%clk 0:00:08]} 127. Kh1 {[%clk 0:00:07]}  Rd1+ {[%clk 0:00:08]} 128. Kh2 {[%clk 0:00:07]}  Kf2 {[%clk 0:00:08]} 129. Bb6+ {[%clk 0:00:06]}  Kf3 {[%clk 0:00:09]} 130. Bc7 {[%clk 0:00:06]} 1/2-1/2


[Site "https://www.chess.com"]

[Event "Titled Tuesday Blitz August 08 Late 2023"]
[White "Urazayev, Arystanbek"]
[Black "Krishnan, Varun"]
[WhiteFideId "13709810"]
[BlackFideId "5054508"]
[WhiteElo "2749"]
[BlackElo "2580"]
[Result "1-0"]
[Round "7"]
[TimeControl "180+1"]
[Date "2023.08.08"]
[WhiteClock "0:00:36"]
[BlackClock "0:00:06"]
[Board "36"]

1. d4 {[%clk 0:02:55]}  Nf6 {[%clk 0:02:58]} 2. c4 {[%clk 0:02:55]}  c6 {[%clk 0:02:59]} 3. Nc3 {[%clk 0:02:55]}  d5 {[%clk 0:02:58]} 4. Nf3 {[%clk 0:02:55]}  e6 {[%clk 0:02:57]} 5. e3 {[%clk 0:02:56]}  Nbd7 {[%clk 0:02:57]} 6. Qc2 {[%clk 0:02:57]}  Bd6 {[%clk 0:02:56]} 7. b3 {[%clk 0:02:57]}  O-O {[%clk 0:02:56]} 8. Be2 {[%clk 0:02:57]}  b6 {[%clk 0:02:56]} 9. Bb2 {[%clk 0:02:58]}  Bb7 {[%clk 0:02:56]} 10. O-O {[%clk 0:02:58]}  Qe7 {[%clk 0:02:55]} 11. Rfe1 {[%clk 0:02:59]}  dxc4 {[%clk 0:02:43]} 12. Bxc4 {[%clk 0:02:54]}  b5 {[%clk 0:02:34]} 13. Bd3 {[%clk 0:02:52]}  e5 {[%clk 0:02:31]} 14. Ne4 {[%clk 0:02:52]}  Nxe4 {[%clk 0:02:21]} 15. Bxe4 {[%clk 0:02:52]}  h6 {[%clk 0:02:08]} 16. dxe5 {[%clk 0:02:40]}  Nxe5 {[%clk 0:02:06]} 17. Nxe5 {[%clk 0:02:38]}  Bxe5 {[%clk 0:02:06]} 18. Bxe5 {[%clk 0:02:39]}  Qxe5 {[%clk 0:02:05]} 19. Rac1 {[%clk 0:02:39]}  Rac8 {[%clk 0:01:58]} 20. Bf3 {[%clk 0:02:34]}  Rfd8 {[%clk 0:01:47]} 21. h3 {[%clk 0:02:27]}  Rd6 {[%clk 0:01:41]} 22. Qc5 {[%clk 0:02:26]}  Qxc5 {[%clk 0:01:32]} 23. Rxc5 {[%clk 0:02:25]}  Rd2 {[%clk 0:01:32]} 24. a4 {[%clk 0:02:21]}  a6 {[%clk 0:01:14]} 25. Rec1 {[%clk 0:02:20]}  bxa4 {[%clk 0:00:57]} 26. bxa4 {[%clk 0:02:18]}  Ra2 {[%clk 0:00:57]} 27. Rb1 {[%clk 0:02:12]}  Rc7 {[%clk 0:00:51]} 28. a5 {[%clk 0:02:12]}  g6 {[%clk 0:00:50]} 29. h4 {[%clk 0:02:12]}  h5 {[%clk 0:00:48]} 30. Rb4 {[%clk 0:01:48]}  Rd7 {[%clk 0:00:42]} 31. g3 {[%clk 0:01:32]}  Kg7 {[%clk 0:00:42]} 32. Rb1 {[%clk 0:01:23]}  Ra4 {[%clk 0:00:31]} 33. Rb2 {[%clk 0:01:18]}  Ra3 {[%clk 0:00:31]} 34. Kg2 {[%clk 0:01:18]}  Ra4 {[%clk 0:00:31]} 35. Rbc2 {[%clk 0:01:03]}  Ra3 {[%clk 0:00:30]} 36. Re5 {[%clk 0:01:02]}  Ra4 {[%clk 0:00:29]} 37. Bxc6 {[%clk 0:00:59]}  Bxc6+ {[%clk 0:00:27]} 38. Rxc6 {[%clk 0:01:00]}  Ra2 {[%clk 0:00:24]} 39. Rxa6 {[%clk 0:00:46]}  Rdd2 {[%clk 0:00:23]} 40. Kf3 {[%clk 0:00:46]}  Rxf2+ {[%clk 0:00:20]} 41. Ke4 {[%clk 0:00:47]}  Ra4+ {[%clk 0:00:19]} 42. Kd5 {[%clk 0:00:46]}  Rf3 {[%clk 0:00:19]} 43. Ra7 {[%clk 0:00:36]}  Rxg3 {[%clk 0:00:18]} 44. Re4 {[%clk 0:00:36]}  Rxe4 {[%clk 0:00:12]} 45. Kxe4 {[%clk 0:00:37]}  Rg4+ {[%clk 0:00:13]} 46. Kd5 {[%clk 0:00:38]}  Rxh4 {[%clk 0:00:13]} 47. e4 {[%clk 0:00:39]}  Rh1 {[%clk 0:00:13]} 48. e5 {[%clk 0:00:40]}  Rd1+ {[%clk 0:00:09]} 49. Kc4 {[%clk 0:00:38]}  h4 {[%clk 0:00:09]} 50. e6 {[%clk 0:00:38]}  h3 {[%clk 0:00:08]} 51. Rxf7+ {[%clk 0:00:38]}  Kh6 {[%clk 0:00:09]} 52. Rf2 {[%clk 0:00:39]}  Re1 {[%clk 0:00:07]} 53. Kd5 {[%clk 0:00:39]}  g5 {[%clk 0:00:06]} 54. a6 {[%clk 0:00:40]}  g4 {[%clk 0:00:06]} 55. a7 {[%clk 0:00:40]}  Rd1+ {[%clk 0:00:06]} 56. Kc6 {[%clk 0:00:39]}  Ra1 {[%clk 0:00:06]} 57. e7 {[%clk 0:00:38]}  Rxa7 {[%clk 0:00:06]} 58. e8=Q {[%clk 0:00:38]}  Rg7 {[%clk 0:00:06]} 59. Qh8+ {[%clk 0:00:38]}  Kg6 {[%clk 0:00:06]} 60. Qh4 {[%clk 0:00:36]}  Rh7 {[%clk 0:00:06]} 1-0


[Site "https://www.chess.com"]

[Event "Titled Tuesday Blitz August 08 Late 2023"]
[White "Attacker_2006"]
[Black "Akobian, Varuzhan"]
[BlackFideId "13300580"]
[WhiteElo "2578"]
[BlackElo "2733"]
[Result "0-1"]
[Round "7"]
[TimeControl "180+1"]
[Date "2023.08.08"]
[WhiteClock "0:00:12"]
[BlackClock "0:01:52"]
[Board "38"]

1. d4 {[%clk 0:02:53]}  e6 {[%clk 0:02:59]} 2. Nc3 {[%clk 0:02:51]}  d5 {[%clk 0:02:58]} 3. Bf4 {[%clk 0:02:51]}  Nf6 {[%clk 0:02:57]} 4. e3 {[%clk 0:02:45]}  a6 {[%clk 0:02:57]} 5. Qf3 {[%clk 0:02:38]}  c5 {[%clk 0:02:55]} 6. g4 {[%clk 0:02:34]}  Nc6 {[%clk 0:02:51]} 7. O-O-O {[%clk 0:02:32]}  cxd4 {[%clk 0:02:50]} 8. exd4 {[%clk 0:02:33]}  Bb4 {[%clk 0:02:50]} 9. Nge2 {[%clk 0:02:24]}  O-O {[%clk 0:02:42]} 10. g5 {[%clk 0:02:24]}  Nd7 {[%clk 0:02:38]} 11. h4 {[%clk 0:02:25]}  Nb6 {[%clk 0:02:28]} 12. h5 {[%clk 0:02:23]}  Nc4 {[%clk 0:02:27]} 13. g6 {[%clk 0:02:20]}  fxg6 {[%clk 0:02:22]} 14. hxg6 {[%clk 0:02:20]}  h6 {[%clk 0:02:23]} 15. Qh5 {[%clk 0:01:59]}  Bxc3 {[%clk 0:02:12]} 16. bxc3 {[%clk 0:01:55]}  Rxf4 {[%clk 0:01:57]} 17. Nxf4 {[%clk 0:01:53]}  Qd6 {[%clk 0:01:57]} 18. Nd3 {[%clk 0:01:31]}  Qa3+ {[%clk 0:01:55]} 19. Kb1 {[%clk 0:01:32]}  Qxc3 {[%clk 0:01:55]} 20. Kc1 {[%clk 0:00:12]}  Qa1# {[%clk 0:01:52]} 0-1


[Site "https://www.chess.com"]

[Event "Titled Tuesday Blitz August 08 Late 2023"]
[White "carokannlover213"]
[Black "reevecanada"]
[WhiteElo "2723"]
[BlackElo "2545"]
[Result "1-0"]
[Round "7"]
[TimeControl "180+1"]
[Date "2023.08.08"]
[WhiteClock "0:00:11"]
[BlackClock "0:00:09"]
[Board "42"]

1. e4 {[%clk 0:03:00]}  c5 {[%clk 0:02:58]} 2. Nf3 {[%clk 0:03:01]}  d6 {[%clk 0:02:57]} 3. Bb5+ {[%clk 0:03:01]}  Bd7 {[%clk 0:02:57]} 4. Bxd7+ {[%clk 0:03:01]}  Qxd7 {[%clk 0:02:58]} 5. c4 {[%clk 0:03:00]}  Nc6 {[%clk 0:02:57]} 6. O-O {[%clk 0:02:55]}  Nf6 {[%clk 0:02:55]} 7. Nc3 {[%clk 0:02:55]}  g6 {[%clk 0:02:55]} 8. d4 {[%clk 0:02:56]}  cxd4 {[%clk 0:02:55]} 9. Nxd4 {[%clk 0:02:57]}  Bg7 {[%clk 0:02:55]} 10. Re1 {[%clk 0:02:05]}  O-O {[%clk 0:02:40]} 11. f3 {[%clk 0:02:04]}  Rac8 {[%clk 0:02:39]} 12. Be3 {[%clk 0:01:58]}  a6 {[%clk 0:02:35]} 13. b3 {[%clk 0:01:51]}  Nxd4 {[%clk 0:02:33]} 14. Bxd4 {[%clk 0:01:51]}  e6 {[%clk 0:02:28]} 15. Rc1 {[%clk 0:01:47]}  Rc6 {[%clk 0:02:23]} 16. Qd3 {[%clk 0:01:46]}  Rfc8 {[%clk 0:02:21]} 17. Red1 {[%clk 0:01:43]}  Qc7 {[%clk 0:02:20]} 18. a4 {[%clk 0:01:32]}  Qa5 {[%clk 0:02:13]} 19. Kh1 {[%clk 0:01:29]}  Qb4 {[%clk 0:02:01]} 20. Na2 {[%clk 0:01:29]}  Qa5 {[%clk 0:02:00]} 21. Bc3 {[%clk 0:01:29]}  Qc7 {[%clk 0:02:00]} 22. Nb4 {[%clk 0:01:29]}  Rb6 {[%clk 0:01:58]} 23. a5 {[%clk 0:01:28]}  Rxb4 {[%clk 0:01:51]} 24. Bxb4 {[%clk 0:01:28]}  Ne8 {[%clk 0:01:50]} 25. c5 {[%clk 0:01:19]}  Bf8 {[%clk 0:01:26]} 26. g3 {[%clk 0:00:46]}  dxc5 {[%clk 0:01:22]} 27. Bxc5 {[%clk 0:00:46]}  Bxc5 {[%clk 0:00:59]} 28. b4 {[%clk 0:00:45]}  Qe5 {[%clk 0:00:52]} 29. f4 {[%clk 0:00:37]}  Qd6 {[%clk 0:00:27]} 30. Qxd6 {[%clk 0:00:36]}  Nxd6 {[%clk 0:00:21]} 31. Rxd6 {[%clk 0:00:34]}  Bxd6 {[%clk 0:00:22]} 32. Rxc8+ {[%clk 0:00:33]}  Kg7 {[%clk 0:00:23]} 33. Rc4 {[%clk 0:00:28]}  e5 {[%clk 0:00:23]} 34. fxe5 {[%clk 0:00:26]}  Bxe5 {[%clk 0:00:24]} 35. b5 {[%clk 0:00:20]}  axb5 {[%clk 0:00:21]} 36. Rc5 {[%clk 0:00:20]}  Bd6 {[%clk 0:00:20]} 37. Rxb5 {[%clk 0:00:20]}  Bc7 {[%clk 0:00:21]} 38. Kg2 {[%clk 0:00:20]}  Kf6 {[%clk 0:00:21]} 39. Kf3 {[%clk 0:00:20]}  Ke6 {[%clk 0:00:21]} 40. Ke3 {[%clk 0:00:20]}  f6 {[%clk 0:00:21]} 41. Kd4 {[%clk 0:00:20]}  h5 {[%clk 0:00:21]} 42. Kc4 {[%clk 0:00:19]}  Kd6 {[%clk 0:00:20]} 43. Kd4 {[%clk 0:00:11]}  Kc6 {[%clk 0:00:19]} 44. Rc5+ {[%clk 0:00:10]}  Kd6 {[%clk 0:00:19]} 45. e5+ {[%clk 0:00:09]}  fxe5+ {[%clk 0:00:18]} 46. Rxe5 {[%clk 0:00:10]}  b6 {[%clk 0:00:06]} 47. a6 {[%clk 0:00:09]}  Bb8 {[%clk 0:00:04]} 48. Rg5 {[%clk 0:00:09]}  b5 {[%clk 0:00:02]} 49. Rxg6+ {[%clk 0:00:09]}  Kc7 {[%clk 0:00:03]} 50. Kc5 {[%clk 0:00:09]}  Ba7+ {[%clk 0:00:03]} 51. Kxb5 {[%clk 0:00:09]}  Bg1 {[%clk 0:00:04]} 52. Rg7+ {[%clk 0:00:09]}  Kb8 {[%clk 0:00:05]} 53. h3 {[%clk 0:00:09]}  Bf2 {[%clk 0:00:05]} 54. g4 {[%clk 0:00:09]}  hxg4 {[%clk 0:00:06]} 55. hxg4 {[%clk 0:00:10]}  Ka8 {[%clk 0:00:07]} 56. Rf7 {[%clk 0:00:10]}  Kb8 {[%clk 0:00:07]} 57. g5 {[%clk 0:00:10]}  Bd4 {[%clk 0:00:06]} 58. g6 {[%clk 0:00:11]}  Ka8 {[%clk 0:00:07]} 59. g7 {[%clk 0:00:12]}  Be5 {[%clk 0:00:08]} 60. g8=Q+ {[%clk 0:00:11]}  Bb8 {[%clk 0:00:09]} 61. Qg2# {[%clk 0:00:11]} 1-0


[Site "https://www.chess.com"]

[Event "Titled Tuesday Blitz August 08 Late 2023"]
[White "Fiorito, Joaquin"]
[Black "Kozusek, Daniel"]
[WhiteFideId "180173"]
[BlackFideId "349500"]
[WhiteElo "2704"]
[BlackElo "2533"]
[Result "0-1"]
[Round "7"]
[TimeControl "180+1"]
[Date "2023.08.08"]
[WhiteClock "0:00:04"]
[BlackClock "0:00:05"]
[Board "44"]

1. d4 {[%clk 0:03:00]}  d5 {[%clk 0:02:59]} 2. c4 {[%clk 0:03:00]}  e6 {[%clk 0:03:00]} 3. Nc3 {[%clk 0:03:00]}  Bb4 {[%clk 0:03:01]} 4. Nf3 {[%clk 0:02:59]}  dxc4 {[%clk 0:03:00]} 5. Qa4+ {[%clk 0:02:55]}  Nc6 {[%clk 0:03:00]} 6. e3 {[%clk 0:02:53]}  Bd7 {[%clk 0:03:01]} 7. Qc2 {[%clk 0:02:51]}  b5 {[%clk 0:03:00]} 8. Bd2 {[%clk 0:02:50]}  a6 {[%clk 0:02:43]} 9. Be2 {[%clk 0:02:49]}  Nf6 {[%clk 0:02:43]} 10. O-O {[%clk 0:02:50]}  O-O {[%clk 0:02:43]} 11. e4 {[%clk 0:02:50]}  Be7 {[%clk 0:02:42]} 12. Rfd1 {[%clk 0:02:43]}  Nb4 {[%clk 0:02:38]} 13. Qb1 {[%clk 0:02:43]}  c5 {[%clk 0:02:38]} 14. a3 {[%clk 0:02:42]}  Nc6 {[%clk 0:02:37]} 15. dxc5 {[%clk 0:02:28]}  Bxc5 {[%clk 0:02:37]} 16. Bg5 {[%clk 0:02:28]}  Be7 {[%clk 0:02:16]} 17. e5 {[%clk 0:02:22]}  Nd5 {[%clk 0:02:05]} 18. Nxd5 {[%clk 0:02:20]}  exd5 {[%clk 0:02:02]} 19. Bxe7 {[%clk 0:02:11]}  Qxe7 {[%clk 0:02:03]} 20. Rxd5 {[%clk 0:02:07]}  Be6 {[%clk 0:02:03]} 21. Rd1 {[%clk 0:02:01]}  Rfd8 {[%clk 0:02:02]} 22. Qe4 {[%clk 0:02:00]}  Na5 {[%clk 0:01:55]} 23. Nd4 {[%clk 0:01:53]}  Bd5 {[%clk 0:01:51]} 24. Qe3 {[%clk 0:01:52]}  Nc6 {[%clk 0:01:48]} 25. f4 {[%clk 0:01:50]}  Qc5 {[%clk 0:01:43]} 26. Nf5 {[%clk 0:01:39]}  Qxe3+ {[%clk 0:01:39]} 27. Nxe3 {[%clk 0:01:40]}  Be4 {[%clk 0:01:40]} 28. Kf2 {[%clk 0:01:33]}  Nd4 {[%clk 0:01:31]} 29. a4 {[%clk 0:01:18]}  Nxe2 {[%clk 0:01:26]} 30. Kxe2 {[%clk 0:01:17]}  Bd3+ {[%clk 0:01:24]} 31. Kf3 {[%clk 0:01:15]}  b4 {[%clk 0:01:23]} 32. Rac1 {[%clk 0:01:15]}  Rd4 {[%clk 0:01:11]} 33. g3 {[%clk 0:00:25]}  Rad8 {[%clk 0:01:06]} 34. Kf2 {[%clk 0:00:25]}  g6 {[%clk 0:01:02]} 35. Rd2 {[%clk 0:00:20]}  a5 {[%clk 0:00:53]} 36. h4 {[%clk 0:00:17]}  h5 {[%clk 0:00:51]} 37. Rdd1 {[%clk 0:00:16]}  Kg7 {[%clk 0:00:49]} 38. Rd2 {[%clk 0:00:16]}  f6 {[%clk 0:00:28]} 39. exf6+ {[%clk 0:00:15]}  Kxf6 {[%clk 0:00:28]} 40. Rdd1 {[%clk 0:00:15]}  Ke6 {[%clk 0:00:27]} 41. Re1 {[%clk 0:00:15]}  Kd6 {[%clk 0:00:26]} 42. Rcd1 {[%clk 0:00:13]}  Kc5 {[%clk 0:00:25]} 43. Ng2 {[%clk 0:00:12]}  Be4 {[%clk 0:00:23]} 44. Rxd4 {[%clk 0:00:11]}  Rxd4 {[%clk 0:00:24]} 45. Re2 {[%clk 0:00:07]}  Bxg2 {[%clk 0:00:19]} 46. Kxg2 {[%clk 0:00:08]}  c3 {[%clk 0:00:19]} 47. bxc3 {[%clk 0:00:08]}  bxc3 {[%clk 0:00:20]} 48. Kf3 {[%clk 0:00:08]}  Kc4 {[%clk 0:00:19]} 49. Re6 {[%clk 0:00:07]}  Kb3 {[%clk 0:00:18]} 50. Rb6+ {[%clk 0:00:06]}  Kxa4 {[%clk 0:00:15]} 51. Ke3 {[%clk 0:00:07]}  Rd8 {[%clk 0:00:14]} 52. Rc6 {[%clk 0:00:01]}  Kb3 {[%clk 0:00:14]} 53. Rb6+ {[%clk 0:00:02]}  Ka3 {[%clk 0:00:13]} 54. Rc6 {[%clk 0:00:02]}  Kb2 {[%clk 0:00:14]} 55. Rb6+ {[%clk 0:00:03]}  Kc1 {[%clk 0:00:14]} 56. Rxg6 {[%clk 0:00:03]}  c2 {[%clk 0:00:13]} 57. Rb6 {[%clk 0:00:04]}  Kd1 {[%clk 0:00:12]} 58. f5 {[%clk 0:00:03]}  c1=Q+ {[%clk 0:00:12]} 59. Kf3 {[%clk 0:00:03]}  Qc3+ {[%clk 0:00:06]} 60. Kg2 {[%clk 0:00:03]}  Qd2+ {[%clk 0:00:06]} 61. Kh3 {[%clk 0:00:03]}  Qe2 {[%clk 0:00:05]} 62. Rg6 {[%clk 0:00:03]}  Qf1+ {[%clk 0:00:05]} 63. Kh2 {[%clk 0:00:04]}  Rd2# {[%clk 0:00:05]} 0-1


[Site "https://www.chess.com"]